[Event "January 9 Early 2024"]
[Site "https://www.chess.com"]
[Date "2024.01.11"]
[Round "5"]
[White "Zhigalko, Sergei"]
[Black "Haring, Filip"]
[Result "1/2-1/2"]
[Board "263"]
[TimeControl "180+1"]
[WhiteFideId "13502956"]
[BlackFideId "14933080"]
[WhiteElo "2914"]
[BlackElo "2711"]
[WhiteTeam "BLR"]
[BlackTeam "SVK"]
[WhiteClock "0:00:11"]
[BlackClock "0:00:09"]

1. e4 {[%clk 0:03:00]}  c5 {[%clk 0:02:53]} 2. c3 {[%clk 0:03:00]}  Nf6 {[%clk 0:02:46]} 3. e5 {[%clk 0:03:01]}  Nd5 {[%clk 0:02:46]} 4. Nf3 {[%clk 0:03:02]}  Nc6 {[%clk 0:02:45]} 5. Bc4 {[%clk 0:03:02]}  Nb6 {[%clk 0:02:43]} 6. Bb3 {[%clk 0:03:03]}  d5 {[%clk 0:02:33]} 7. exd6 {[%clk 0:03:03]}  Qxd6 {[%clk 0:02:34]} 8. O-O {[%clk 0:03:03]}  Be6 {[%clk 0:02:32]} 9. Bxe6 {[%clk 0:03:03]}  Qxe6 {[%clk 0:02:32]} 10. a4 {[%clk 0:03:04]}  Qd7 {[%clk 0:02:25]} 11. a5 {[%clk 0:03:04]}  Nd5 {[%clk 0:02:25]} 12. a6 {[%clk 0:03:04]}  b6 {[%clk 0:02:17]} 13. d4 {[%clk 0:03:05]}  cxd4 {[%clk 0:02:13]} 14. Nxd4 {[%clk 0:03:05]}  Nxd4 {[%clk 0:02:06]} 15. Qxd4 {[%clk 0:03:05]}  e6 {[%clk 0:02:05]} 16. Rd1 {[%clk 0:03:00]}  Rd8 {[%clk 0:01:59]} 17. Na3 {[%clk 0:02:43]}  Nc7 {[%clk 0:01:50]} 18. Qxd7+ {[%clk 0:02:27]}  Rxd7 {[%clk 0:01:51]} 19. Rxd7 {[%clk 0:02:27]}  Kxd7 {[%clk 0:01:52]} 20. Nc4 {[%clk 0:02:28]}  f6 {[%clk 0:01:43]} 21. Be3 {[%clk 0:02:27]}  Kc6 {[%clk 0:01:38]} 22. b4 {[%clk 0:02:22]}  Be7 {[%clk 0:01:31]} 23. Kf1 {[%clk 0:02:19]}  Nd5 {[%clk 0:01:06]} 24. Bd2 {[%clk 0:02:18]}  Rc8 {[%clk 0:01:06]} 25. Na3 {[%clk 0:01:54]}  Nc7 {[%clk 0:00:45]} 26. c4 {[%clk 0:01:40]}  Rd8 {[%clk 0:00:34]} 27. Ke2 {[%clk 0:01:33]}  e5 {[%clk 0:00:34]} 28. Bc3 {[%clk 0:01:30]}  b5 {[%clk 0:00:23]} 29. Bd2 {[%clk 0:01:25]}  bxc4 {[%clk 0:00:19]} 30. Nxc4 {[%clk 0:01:24]}  Nd5 {[%clk 0:00:18]} 31. Na5+ {[%clk 0:00:52]}  Kb5 {[%clk 0:00:18]} 32. Rc1 {[%clk 0:00:33]}  Nxb4 {[%clk 0:00:18]} 33. Bxb4 {[%clk 0:00:30]}  Bxb4 {[%clk 0:00:19]} 34. Nc6 {[%clk 0:00:30]}  Rd7 {[%clk 0:00:20]} 35. Nxb4 {[%clk 0:00:20]}  Kxb4 {[%clk 0:00:20]} 36. Rb1+ {[%clk 0:00:21]}  Kc5 {[%clk 0:00:18]} 37. Ke3 {[%clk 0:00:12]}  f5 {[%clk 0:00:16]} 38. h3 {[%clk 0:00:09]}  g5 {[%clk 0:00:15]} 39. g4 {[%clk 0:00:09]}  fxg4 {[%clk 0:00:12]} 40. hxg4 {[%clk 0:00:10]}  Rd6 {[%clk 0:00:12]} 41. Rb7 {[%clk 0:00:05]}  Rxa6 {[%clk 0:00:12]} 42. Rxh7 {[%clk 0:00:05]}  Kd5 {[%clk 0:00:09]} 43. Rd7+ {[%clk 0:00:04]}  Ke6 {[%clk 0:00:09]} 44. Rh7 {[%clk 0:00:05]}  Ra3+ {[%clk 0:00:08]} 45. Ke4 {[%clk 0:00:05]}  Ra4+ {[%clk 0:00:09]} 46. Kf3 {[%clk 0:00:06]}  Rf4+ {[%clk 0:00:08]} 47. Kg3 {[%clk 0:00:06]}  a5 {[%clk 0:00:09]} 48. Rh6+ {[%clk 0:00:05]}  Kf7 {[%clk 0:00:07]} 49. Rh5 {[%clk 0:00:05]}  Kg6 {[%clk 0:00:07]} 50. Rh8 {[%clk 0:00:05]}  a4 {[%clk 0:00:08]} 51. Re8 {[%clk 0:00:05]}  Kf6 {[%clk 0:00:07]} 52. Rf8+ {[%clk 0:00:05]}  Ke6 {[%clk 0:00:07]} 53. Re8+ {[%clk 0:00:05]}  Kf6 {[%clk 0:00:04]} 54. Rf8+ {[%clk 0:00:05]}  Ke6 {[%clk 0:00:04]} 55. Rg8 {[%clk 0:00:05]}  Kf6 {[%clk 0:00:02]} 56. f3 {[%clk 0:00:04]}  a3 {[%clk 0:00:02]} 57. Ra8 {[%clk 0:00:04]}  e4 {[%clk 0:00:03]} 58. Ra6+ {[%clk 0:00:04]}  Kg7 {[%clk 0:00:03]} 59. fxe4 {[%clk 0:00:04]}  Rxe4 {[%clk 0:00:03]} 60. Rxa3 {[%clk 0:00:04]}  Kf6 {[%clk 0:00:04]} 61. Rf3+ {[%clk 0:00:04]}  Rf4 {[%clk 0:00:03]} 62. Rxf4+ {[%clk 0:00:04]}  gxf4+ {[%clk 0:00:04]} 63. Kxf4 {[%clk 0:00:05]}  Kg6 {[%clk 0:00:05]} 64. g5 {[%clk 0:00:06]}  Kg7 {[%clk 0:00:05]} 65. Kf5 {[%clk 0:00:07]}  Kf7 {[%clk 0:00:06]} 66. g6+ {[%clk 0:00:07]}  Kg7 {[%clk 0:00:06]} 67. Kg5 {[%clk 0:00:07]}  Kg8 {[%clk 0:00:07]} 68. Kh5 {[%clk 0:00:08]}  Kg7 {[%clk 0:00:07]} 69. Kg5 {[%clk 0:00:09]}  Kg8 {[%clk 0:00:08]} 70. Kf6 {[%clk 0:00:09]}  Kf8 {[%clk 0:00:08]} 71. g7+ {[%clk 0:00:10]}  Kg8 {[%clk 0:00:09]} 72. Kg6 {[%clk 0:00:11]} 1/2-1/2

[Event "January 9 Early 2024"]
[Site "https://www.chess.com"]
[Date "2024.01.11"]
[Round "5"]
[White "Rose, Felix"]
[Black "Crocker, Philip J"]
[Result "1-0"]
[Board "265"]
[TimeControl "180+1"]
[WhiteFideId "5105722"]
[BlackFideId "403180"]
[WhiteElo "2253"]
[BlackElo "2105"]
[WhiteTeam "MEX"]
[BlackTeam "ENG"]
[WhiteClock "0:00:12"]
[BlackClock "0:00:23"]

1. e4 {[%clk 0:03:00]}  c5 {[%clk 0:02:59]} 2. Nf3 {[%clk 0:03:00]}  g6 {[%clk 0:02:59]} 3. d4 {[%clk 0:03:00]}  cxd4 {[%clk 0:02:59]} 4. Nxd4 {[%clk 0:03:01]}  Bg7 {[%clk 0:02:58]} 5. c4 {[%clk 0:03:01]}  Nc6 {[%clk 0:02:57]} 6. Be3 {[%clk 0:03:02]}  Nf6 {[%clk 0:02:52]} 7. Nc3 {[%clk 0:03:01]}  d6 {[%clk 0:02:52]} 8. Be2 {[%clk 0:03:01]}  O-O {[%clk 0:02:51]} 9. f3 {[%clk 0:03:01]}  Bd7 {[%clk 0:02:46]} 10. Qd2 {[%clk 0:03:01]}  Rc8 {[%clk 0:02:46]} 11. Rc1 {[%clk 0:03:01]}  a6 {[%clk 0:02:46]} 12. b3 {[%clk 0:03:01]}  Qa5 {[%clk 0:02:39]} 13. O-O {[%clk 0:02:56]}  Nxd4 {[%clk 0:02:38]} 14. Bxd4 {[%clk 0:02:56]}  b5 {[%clk 0:02:31]} 15. Rfd1 {[%clk 0:02:52]}  bxc4 {[%clk 0:02:25]} 16. Bxc4 {[%clk 0:02:46]}  Bb5 {[%clk 0:02:03]} 17. Nd5 {[%clk 0:02:08]}  Qd8 {[%clk 0:01:56]} 18. Bxf6 {[%clk 0:01:42]}  exf6 {[%clk 0:01:50]} 19. Bxb5 {[%clk 0:01:26]}  Rxc1 {[%clk 0:01:49]} 20. Rxc1 {[%clk 0:01:26]}  axb5 {[%clk 0:01:50]} 21. Rc8 {[%clk 0:00:41]}  Qd7 {[%clk 0:01:47]} 22. Rc7 {[%clk 0:00:40]}  Qe6 {[%clk 0:01:37]} 23. Qc2 {[%clk 0:00:26]}  f5 {[%clk 0:01:33]} 24. Re7 {[%clk 0:00:24]}  Qc8 {[%clk 0:01:30]} 25. Qxc8 {[%clk 0:00:19]}  Rxc8 {[%clk 0:01:29]} 26. exf5 {[%clk 0:00:19]}  gxf5 {[%clk 0:01:28]} 27. Rb7 {[%clk 0:00:18]}  Rc5 {[%clk 0:01:26]} 28. Nc7 {[%clk 0:00:14]}  Be5 {[%clk 0:01:20]} 29. Rb8+ {[%clk 0:00:11]}  Kg7 {[%clk 0:01:19]} 30. Nxb5 {[%clk 0:00:08]}  Rc1+ {[%clk 0:01:17]} 31. Kf2 {[%clk 0:00:09]}  Rc2+ {[%clk 0:01:17]} 32. Ke1 {[%clk 0:00:08]}  Rxa2 {[%clk 0:01:15]} 33. g3 {[%clk 0:00:08]}  Rxh2 {[%clk 0:01:15]} 34. f4 {[%clk 0:00:09]}  Bf6 {[%clk 0:01:07]} 35. Nxd6 {[%clk 0:00:09]}  Rg2 {[%clk 0:01:04]} 36. Ne8+ {[%clk 0:00:09]}  Kg6 {[%clk 0:00:55]} 37. Rb6 {[%clk 0:00:09]}  Rxg3 {[%clk 0:00:52]} 38. Rxf6+ {[%clk 0:00:09]}  Kh5 {[%clk 0:00:52]} 39. Rxf7 {[%clk 0:00:09]}  Rxb3 {[%clk 0:00:50]} 40. Nf6+ {[%clk 0:00:09]}  Kg6 {[%clk 0:00:49]} 41. Rf8 {[%clk 0:00:09]}  Rb4 {[%clk 0:00:42]} 42. Nd5 {[%clk 0:00:09]}  Rb2 {[%clk 0:00:40]} 43. Kf1 {[%clk 0:00:09]}  h5 {[%clk 0:00:37]} 44. Rf6+ {[%clk 0:00:09]}  Kg7 {[%clk 0:00:36]} 45. Rxf5 {[%clk 0:00:10]}  Kg6 {[%clk 0:00:36]} 46. Rg5+ {[%clk 0:00:10]}  Kh6 {[%clk 0:00:36]} 47. Ne3 {[%clk 0:00:10]}  h4 {[%clk 0:00:36]} 48. Nf5+ {[%clk 0:00:10]}  Kh7 {[%clk 0:00:34]} 49. Nxh4 {[%clk 0:00:09]}  Kh6 {[%clk 0:00:34]} 50. Nf5+ {[%clk 0:00:09]}  Kh7 {[%clk 0:00:34]} 51. Rg7+ {[%clk 0:00:09]}  Kh8 {[%clk 0:00:33]} 52. Rg4 {[%clk 0:00:10]}  Ra2 {[%clk 0:00:33]} 53. Ng3 {[%clk 0:00:09]}  Rb2 {[%clk 0:00:33]} 54. Ne2 {[%clk 0:00:10]}  Kh7 {[%clk 0:00:33]} 55. Kf2 {[%clk 0:00:10]}  Kh6 {[%clk 0:00:33]} 56. Kf3 {[%clk 0:00:11]}  Rb3+ {[%clk 0:00:33]} 57. Ke4 {[%clk 0:00:11]}  Rb2 {[%clk 0:00:33]} 58. Nd4 {[%clk 0:00:11]}  Rb4 {[%clk 0:00:33]} 59. Rh4+ {[%clk 0:00:11]}  Kg6 {[%clk 0:00:32]} 60. f5+ {[%clk 0:00:11]}  Kf7 {[%clk 0:00:32]} 61. Rh7+ {[%clk 0:00:11]}  Kf6 {[%clk 0:00:31]} 62. Rh6+ {[%clk 0:00:12]}  Kf7 {[%clk 0:00:30]} 63. Ke5 {[%clk 0:00:11]}  Ra4 {[%clk 0:00:29]} 64. Rh7+ {[%clk 0:00:12]}  Kg8 {[%clk 0:00:29]} 65. Rc7 {[%clk 0:00:12]}  Ra5+ {[%clk 0:00:29]} 66. Kf6 {[%clk 0:00:12]}  Ra6+ {[%clk 0:00:29]} 67. Ne6 {[%clk 0:00:12]}  Ra8 {[%clk 0:00:28]} 68. Kg6 {[%clk 0:00:12]}  Kh8 {[%clk 0:00:27]} 69. Rh7+ {[%clk 0:00:12]}  Kg8 {[%clk 0:00:27]} 70. f6 {[%clk 0:00:12]}  Rf8 {[%clk 0:00:24]} 71. Nxf8 {[%clk 0:00:12]}  Kxf8 {[%clk 0:00:23]} 72. Rh8# {[%clk 0:00:12]} 1-0

[Event "January 9 Early 2024"]
[Site "https://www.chess.com"]
[Date "2024.01.11"]
[Round "5"]
[White "Skliarov, Viktor"]
[Black "Mahdavi, Reza"]
[Result "1-0"]
[Board "266"]
[TimeControl "180+1"]
[WhiteFideId "14106736"]
[BlackFideId "12595926"]
[WhiteElo "2679"]
[BlackElo "2857"]
[WhiteTeam "UKR"]
[BlackTeam "IRI"]
[WhiteClock "0:00:07"]
[BlackClock "0:00:02"]

1. e4 {[%clk 0:03:00]}  c6 {[%clk 0:02:59]} 2. d4 {[%clk 0:03:00]}  d5 {[%clk 0:03:00]} 3. e5 {[%clk 0:03:01]}  Bf5 {[%clk 0:03:00]} 4. Nf3 {[%clk 0:03:01]}  e6 {[%clk 0:03:00]} 5. Be2 {[%clk 0:03:00]}  Nd7 {[%clk 0:03:01]} 6. O-O {[%clk 0:03:00]}  a5 {[%clk 0:03:02]} 7. a4 {[%clk 0:02:59]}  f6 {[%clk 0:03:00]} 8. Na3 {[%clk 0:02:51]}  fxe5 {[%clk 0:02:47]} 9. dxe5 {[%clk 0:02:46]}  Bc5 {[%clk 0:02:43]} 10. c3 {[%clk 0:02:02]}  Ne7 {[%clk 0:02:43]} 11. Nc2 {[%clk 0:02:01]}  O-O {[%clk 0:02:38]} 12. b4 {[%clk 0:02:00]}  axb4 {[%clk 0:02:36]} 13. cxb4 {[%clk 0:02:01]}  Ba7 {[%clk 0:02:32]} 14. Ncd4 {[%clk 0:01:55]}  Qe8 {[%clk 0:02:27]} 15. Nxf5 {[%clk 0:01:35]}  Nxf5 {[%clk 0:02:28]} 16. Bb2 {[%clk 0:01:34]}  Qg6 {[%clk 0:02:25]} 17. Bd3 {[%clk 0:01:20]}  Qg4 {[%clk 0:02:18]} 18. Bc3 {[%clk 0:01:00]}  Nh4 {[%clk 0:02:02]} 19. Nxh4 {[%clk 0:00:59]}  Qxh4 {[%clk 0:02:03]} 20. g3 {[%clk 0:00:20]}  Qg5 {[%clk 0:02:00]} 21. Qe2 {[%clk 0:00:18]}  Rf7 {[%clk 0:01:45]} 22. Kg2 {[%clk 0:00:17]}  Raf8 {[%clk 0:01:45]} 23. f4 {[%clk 0:00:13]}  Qh6 {[%clk 0:01:19]} 24. h4 {[%clk 0:00:13]}  g6 {[%clk 0:01:08]} 25. a5 {[%clk 0:00:13]}  Qg7 {[%clk 0:00:59]} 26. a6 {[%clk 0:00:13]}  b6 {[%clk 0:00:58]} 27. Qg4 {[%clk 0:00:12]}  Re8 {[%clk 0:00:58]} 28. Rh1 {[%clk 0:00:12]}  Nf8 {[%clk 0:00:53]} 29. Rac1 {[%clk 0:00:09]}  c5 {[%clk 0:00:52]} 30. Bb5 {[%clk 0:00:09]}  Rd8 {[%clk 0:00:52]} 31. h5 {[%clk 0:00:09]}  gxh5 {[%clk 0:00:51]} 32. Qxg7+ {[%clk 0:00:09]}  Rxg7 {[%clk 0:00:52]} 33. Rxh5 {[%clk 0:00:09]}  Ng6 {[%clk 0:00:51]} 34. Kf3 {[%clk 0:00:08]}  Ne7 {[%clk 0:00:48]} 35. g4 {[%clk 0:00:08]}  d4 {[%clk 0:00:46]} 36. Bd2 {[%clk 0:00:08]}  Nd5 {[%clk 0:00:47]} 37. bxc5 {[%clk 0:00:08]}  bxc5 {[%clk 0:00:47]} 38. f5 {[%clk 0:00:05]}  Rb8 {[%clk 0:00:31]} 39. Bc4 {[%clk 0:00:05]}  Rb2 {[%clk 0:00:32]} 40. fxe6 {[%clk 0:00:04]}  Rxd2 {[%clk 0:00:32]} 41. Bxd5 {[%clk 0:00:05]}  Re7 {[%clk 0:00:32]} 42. Rb1 {[%clk 0:00:05]}  Rd3+ {[%clk 0:00:28]} 43. Ke2 {[%clk 0:00:04]}  Re3+ {[%clk 0:00:28]} 44. Kd2 {[%clk 0:00:05]}  c4 {[%clk 0:00:14]} 45. Bxc4 {[%clk 0:00:04]}  Rc3 {[%clk 0:00:13]} 46. Bd5 {[%clk 0:00:05]}  Rcc7 {[%clk 0:00:06]} 47. Rb7 {[%clk 0:00:05]}  Kg7 {[%clk 0:00:02]} 48. Rg5+ {[%clk 0:00:04]}  Kh6 {[%clk 0:00:02]} 49. Rf5 {[%clk 0:00:04]}  Kg6 {[%clk 0:00:02]} 50. Rf7 {[%clk 0:00:04]}  Rxb7 {[%clk 0:00:03]} 51. axb7 {[%clk 0:00:04]}  Rxf7 {[%clk 0:00:02]} 52. exf7 {[%clk 0:00:05]}  Kg7 {[%clk 0:00:03]} 53. Kd3 {[%clk 0:00:04]}  Kf8 {[%clk 0:00:03]} 54. Ke4 {[%clk 0:00:05]}  Ke7 {[%clk 0:00:04]} 55. e6 {[%clk 0:00:05]}  Kf8 {[%clk 0:00:04]} 56. Bc6 {[%clk 0:00:05]}  Ke7 {[%clk 0:00:04]} 57. Bb5 {[%clk 0:00:06]}  Bb8 {[%clk 0:00:04]} 58. Bc4 {[%clk 0:00:06]}  Ba7 {[%clk 0:00:04]} 59. Ke5 {[%clk 0:00:06]}  h6 {[%clk 0:00:03]} 60. Kd5 {[%clk 0:00:05]}  Bb8 {[%clk 0:00:02]} 61. Kxd4 {[%clk 0:00:06]}  Kf8 {[%clk 0:00:02]} 62. Kd5 {[%clk 0:00:06]}  Ke7 {[%clk 0:00:03]} 63. Kc6 {[%clk 0:00:06]}  Bh2 {[%clk 0:00:02]} 64. f8=Q+ {[%clk 0:00:06]}  Kxf8 {[%clk 0:00:02]} 65. Kd7 {[%clk 0:00:07]} 1-0

[Event "January 9 Early 2024"]
[Site "https://www.chess.com"]
[Date "2024.01.11"]
[Round "5"]
[White "Mekhitarian, Krikor Sevag"]
[Black "Mammadzada, Gunay"]
[Result "1-0"]
[Board "268"]
[TimeControl "180+1"]
[WhiteFideId "2107660"]
[BlackFideId "13403729"]
[WhiteElo "2756"]
[BlackElo "2507"]
[WhiteTeam "BRA"]
[BlackTeam "AZE"]
[WhiteClock "0:00:04"]
[BlackClock "0:00:01"]

1. Nf3 {[%clk 0:03:00]}  d5 {[%clk 0:02:59]} 2. c4 {[%clk 0:03:00]}  c6 {[%clk 0:02:59]} 3. d4 {[%clk 0:03:00]}  Nf6 {[%clk 0:02:58]} 4. Nc3 {[%clk 0:03:00]}  dxc4 {[%clk 0:02:58]} 5. a4 {[%clk 0:03:00]}  Bf5 {[%clk 0:02:58]} 6. Nh4 {[%clk 0:02:59]}  Bc8 {[%clk 0:02:53]} 7. e3 {[%clk 0:02:43]}  e6 {[%clk 0:02:47]} 8. Bxc4 {[%clk 0:02:42]}  c5 {[%clk 0:02:48]} 9. O-O {[%clk 0:02:41]}  cxd4 {[%clk 0:02:42]} 10. exd4 {[%clk 0:02:42]}  Be7 {[%clk 0:02:36]} 11. Re1 {[%clk 0:02:40]}  O-O {[%clk 0:02:36]} 12. Nf3 {[%clk 0:02:38]}  Nbd7 {[%clk 0:02:33]} 13. a5 {[%clk 0:02:36]}  Bb4 {[%clk 0:01:57]} 14. Qa4 {[%clk 0:02:31]}  Bxc3 {[%clk 0:01:57]} 15. bxc3 {[%clk 0:02:30]}  Nd5 {[%clk 0:01:58]} 16. Qb3 {[%clk 0:01:34]}  N7f6 {[%clk 0:01:43]} 17. Bd3 {[%clk 0:01:33]}  Qc7 {[%clk 0:01:41]} 18. c4 {[%clk 0:01:28]}  Nf4 {[%clk 0:01:40]} 19. Bf1 {[%clk 0:01:28]}  Rd8 {[%clk 0:01:31]} 20. Bb2 {[%clk 0:01:15]}  Rb8 {[%clk 0:01:26]} 21. Ne5 {[%clk 0:01:13]}  b6 {[%clk 0:01:22]} 22. a6 {[%clk 0:01:11]}  Bd7 {[%clk 0:01:08]} 23. Qg3 {[%clk 0:01:04]}  Ng6 {[%clk 0:00:52]} 24. d5 {[%clk 0:00:51]}  Nh5 {[%clk 0:00:31]} 25. Qg5 {[%clk 0:00:41]}  f6 {[%clk 0:00:27]} 26. Qxh5 {[%clk 0:00:39]}  fxe5 {[%clk 0:00:27]} 27. Bd3 {[%clk 0:00:36]}  Be8 {[%clk 0:00:23]} 28. Rad1 {[%clk 0:00:10]}  b5 {[%clk 0:00:13]} 29. Bxe5 {[%clk 0:00:05]}  Nxe5 {[%clk 0:00:12]} 30. Qxh7+ {[%clk 0:00:06]}  Kf8 {[%clk 0:00:12]} 31. Qh8+ {[%clk 0:00:04]}  Kf7 {[%clk 0:00:11]} 32. Qh5+ {[%clk 0:00:04]}  Kg8 {[%clk 0:00:08]} 33. Qxe5 {[%clk 0:00:02]}  Qxe5 {[%clk 0:00:08]} 34. Rxe5 {[%clk 0:00:03]}  b4 {[%clk 0:00:05]} 35. dxe6 {[%clk 0:00:01]}  Ba4 {[%clk 0:00:02]} 36. Rd2 {[%clk 0:00:01]}  b3 {[%clk 0:00:02]} 37. Ree2 {[%clk 0:00:01]}  b2 {[%clk 0:00:02]} 38. Bb1 {[%clk 0:00:02]}  Rxd2 {[%clk 0:00:01]} 39. Rxd2 {[%clk 0:00:03]}  Re8 {[%clk 0:00:01]} 40. f4 {[%clk 0:00:02]}  Rxe6 {[%clk 0:00:02]} 41. Kf2 {[%clk 0:00:02]}  Rb6 {[%clk 0:00:02]} 42. g4 {[%clk 0:00:03]}  Kf7 {[%clk 0:00:02]} 43. h4 {[%clk 0:00:03]}  Bb3 {[%clk 0:00:02]} 44. c5 {[%clk 0:00:03]}  Rxa6 {[%clk 0:00:02]} 45. Rxb2 {[%clk 0:00:04]}  Bd5 {[%clk 0:00:02]} 46. Bd3 {[%clk 0:00:03]}  Ra4 {[%clk 0:00:01]} 47. Ke3 {[%clk 0:00:03]}  Ra3 {[%clk 0:00:01]} 48. Kd4 {[%clk 0:00:03]}  Bc6 {[%clk 0:00:01]} 49. Bc4+ {[%clk 0:00:03]}  Kf6 {[%clk 0:00:01]} 50. Rb3 {[%clk 0:00:03]}  Ra2 {[%clk 0:00:01]} 51. Bd3 {[%clk 0:00:03]}  Ra1 {[%clk 0:00:02]} 52. g5+ {[%clk 0:00:03]}  Ke7 {[%clk 0:00:02]} 53. Rb8 {[%clk 0:00:02]}  Rh1 {[%clk 0:00:02]} 54. Rg8 {[%clk 0:00:02]}  Rxh4 {[%clk 0:00:02]} 55. Rxg7+ {[%clk 0:00:02]}  Kf8 {[%clk 0:00:03]} 56. Rxa7 {[%clk 0:00:01]}  Rxf4+ {[%clk 0:00:03]} 57. Ke5 {[%clk 0:00:02]}  Rf3 {[%clk 0:00:03]} 58. Bf5 {[%clk 0:00:02]}  Rc3 {[%clk 0:00:02]} 59. Kd6 {[%clk 0:00:02]}  Be8 {[%clk 0:00:02]} 60. Be6 {[%clk 0:00:02]}  Rd3+ {[%clk 0:00:02]} 61. Ke5 {[%clk 0:00:03]}  Re3+ {[%clk 0:00:02]} 62. Kf6 {[%clk 0:00:03]}  Rf3+ {[%clk 0:00:02]} 63. Bf5 {[%clk 0:00:04]}  Rc3 {[%clk 0:00:02]} 64. g6 {[%clk 0:00:04]}  Bxg6 {[%clk 0:00:02]} 65. Bxg6 {[%clk 0:00:04]}  Rf3+ {[%clk 0:00:01]} 66. Bf5 {[%clk 0:00:04]}  Rxf5+ {[%clk 0:00:01]} 67. Kxf5 {[%clk 0:00:04]} 1-0

[Event "January 9 Early 2024"]
[Site "https://www.chess.com"]
[Date "2024.01.11"]
[Round "5"]
[White "Bacrot, Etienne"]
[Black "Caspi, Israel"]
[Result "1-0"]
[Board "269"]
[TimeControl "180+1"]
[WhiteFideId "605506"]
[BlackFideId "2807394"]
[WhiteElo "2839"]
[BlackElo "2629"]
[WhiteTeam "FRA"]
[BlackTeam "ISR"]
[WhiteClock "0:00:04"]
[BlackClock "0:00:03"]

1. e4 {[%clk 0:03:00]}  e5 {[%clk 0:02:59]} 2. Nf3 {[%clk 0:03:00]}  Nc6 {[%clk 0:03:00]} 3. Bc4 {[%clk 0:03:01]}  Nf6 {[%clk 0:02:59]} 4. d3 {[%clk 0:03:00]}  Bc5 {[%clk 0:03:00]} 5. Nc3 {[%clk 0:03:01]}  d6 {[%clk 0:02:59]} 6. Na4 {[%clk 0:02:58]}  Bb6 {[%clk 0:02:55]} 7. Nxb6 {[%clk 0:02:57]}  axb6 {[%clk 0:02:56]} 8. c3 {[%clk 0:02:53]}  O-O {[%clk 0:02:53]} 9. O-O {[%clk 0:02:52]}  Ne7 {[%clk 0:02:38]} 10. Re1 {[%clk 0:02:45]}  Ng6 {[%clk 0:02:37]} 11. d4 {[%clk 0:02:45]}  Bg4 {[%clk 0:02:35]} 12. h3 {[%clk 0:02:41]}  Bd7 {[%clk 0:02:30]} 13. Bb3 {[%clk 0:02:20]}  h6 {[%clk 0:02:29]} 14. Bc2 {[%clk 0:02:14]}  Re8 {[%clk 0:02:28]} 15. dxe5 {[%clk 0:02:05]}  dxe5 {[%clk 0:02:25]} 16. Be3 {[%clk 0:02:04]}  Bc6 {[%clk 0:02:24]} 17. Nd2 {[%clk 0:02:04]}  b5 {[%clk 0:02:16]} 18. Qf3 {[%clk 0:02:01]}  Qe7 {[%clk 0:02:03]} 19. Nf1 {[%clk 0:01:52]}  Nh4 {[%clk 0:01:55]} 20. Qg3 {[%clk 0:01:51]}  Nxe4 {[%clk 0:01:53]} 21. Bxe4 {[%clk 0:01:47]}  Bxe4 {[%clk 0:01:54]} 22. Bxh6 {[%clk 0:01:42]}  Nf5 {[%clk 0:01:54]} 23. Qg4 {[%clk 0:01:39]}  Bd3 {[%clk 0:01:38]} 24. Bf4 {[%clk 0:01:10]}  Qf6 {[%clk 0:01:29]} 25. Bg5 {[%clk 0:00:58]}  Qg6 {[%clk 0:01:26]} 26. Rad1 {[%clk 0:00:57]}  Nd6 {[%clk 0:01:12]} 27. a3 {[%clk 0:00:47]}  f6 {[%clk 0:01:12]} 28. Rxd3 {[%clk 0:00:30]}  Qxg5 {[%clk 0:00:45]} 29. Qxg5 {[%clk 0:00:30]}  fxg5 {[%clk 0:00:45]} 30. Ne3 {[%clk 0:00:19]}  Nf7 {[%clk 0:00:16]} 31. Rd7 {[%clk 0:00:18]}  Rac8 {[%clk 0:00:15]} 32. Nd5 {[%clk 0:00:13]}  Red8 {[%clk 0:00:11]} 33. Rxc7 {[%clk 0:00:08]}  Rxc7 {[%clk 0:00:10]} 34. Nxc7 {[%clk 0:00:09]}  Rd2 {[%clk 0:00:11]} 35. Rb1 {[%clk 0:00:09]}  e4 {[%clk 0:00:11]} 36. Nxb5 {[%clk 0:00:09]}  Ne5 {[%clk 0:00:11]} 37. Nd4 {[%clk 0:00:09]}  Nd3 {[%clk 0:00:11]} 38. Rf1 {[%clk 0:00:07]}  Nxb2 {[%clk 0:00:11]} 39. Re1 {[%clk 0:00:06]}  Nc4 {[%clk 0:00:08]} 40. Rxe4 {[%clk 0:00:06]}  Nxa3 {[%clk 0:00:09]} 41. Re7 {[%clk 0:00:05]}  b5 {[%clk 0:00:09]} 42. Nf5 {[%clk 0:00:06]}  g6 {[%clk 0:00:07]} 43. Rg7+ {[%clk 0:00:06]}  Kf8 {[%clk 0:00:08]} 44. Rxg6 {[%clk 0:00:06]}  Rd3 {[%clk 0:00:08]} 45. Rc6 {[%clk 0:00:05]}  Rd5 {[%clk 0:00:07]} 46. Ne3 {[%clk 0:00:05]}  Re5 {[%clk 0:00:07]} 47. g3 {[%clk 0:00:05]}  Ke7 {[%clk 0:00:07]} 48. Kg2 {[%clk 0:00:04]}  Kd7 {[%clk 0:00:08]} 49. Rg6 {[%clk 0:00:04]}  Nb1 {[%clk 0:00:07]} 50. Nd1 {[%clk 0:00:03]}  Rd5 {[%clk 0:00:07]} 51. Ne3 {[%clk 0:00:03]}  Rc5 {[%clk 0:00:07]} 52. h4 {[%clk 0:00:02]}  gxh4 {[%clk 0:00:07]} 53. gxh4 {[%clk 0:00:03]}  Nxc3 {[%clk 0:00:07]} 54. Rg4 {[%clk 0:00:03]}  Ke6 {[%clk 0:00:06]} 55. Nc2 {[%clk 0:00:03]}  Nd5 {[%clk 0:00:06]} 56. Nd4+ {[%clk 0:00:03]}  Kf6 {[%clk 0:00:06]} 57. h5 {[%clk 0:00:03]}  Ne7 {[%clk 0:00:04]} 58. h6 {[%clk 0:00:04]}  Ng6 {[%clk 0:00:04]} 59. h7 {[%clk 0:00:04]}  Rc8 {[%clk 0:00:04]} 60. Nf3 {[%clk 0:00:03]}  Rh8 {[%clk 0:00:04]} 61. Ng5 {[%clk 0:00:04]}  Ne5 {[%clk 0:00:04]} 62. Rg3 {[%clk 0:00:04]}  Kf5 {[%clk 0:00:05]} 63. f4 {[%clk 0:00:03]}  Ng6 {[%clk 0:00:04]} 64. Kf3 {[%clk 0:00:02]}  Nxf4 {[%clk 0:00:04]} 65. Ne4 {[%clk 0:00:03]}  Ne6 {[%clk 0:00:02]} 66. Nd6+ {[%clk 0:00:03]}  Ke5 {[%clk 0:00:02]} 67. Nf7+ {[%clk 0:00:02]}  Kf6 {[%clk 0:00:02]} 68. Nxh8 {[%clk 0:00:03]}  Nd4+ {[%clk 0:00:03]} 69. Ke4 {[%clk 0:00:03]}  Nf5 {[%clk 0:00:03]} 70. Rg6+ {[%clk 0:00:04]}  Ke7 {[%clk 0:00:03]} 71. Kxf5 {[%clk 0:00:04]} 1-0